Cogmind - Beta 13 @@@ ROGUE MODE // 2024.04.10 @ 11:47:53 Player: Rocketboy Result: Destroyed by BO-GMY(R) with Subdweller Beam Cannon Performance ------------- Evolutions (0) 0 Regions Visited (2) 400 Robots Destroyed (23) 115 Value Destroyed (560) 560 Prototype IDs (0) 0 Alien Tech Used (0) 0 Bonus (0) 0 TOTAL SCORE: 1075 Bonus ------- None Cogmind --------- Core Integrity 0/250 Matter 300/300 Energy 233/250 System Corruption 0% Temperature Cool (15) Movement Walking (190) Ox1 Location -10/Subcaves Parts ------- > --- POWER (1) -------- Ion Engine > --- PROPULSION (2) --- Aluminum Leg Aluminum Leg > --- UTILITY (2) ------ Medium Storage Unit Structural Scanner > --- WEAPON (2) ------- Beam Rifle Beam Rifle > --- INVENTORY (10) --- Aluminum Leg Aluminum Leg Aluminum Leg Aluminum Leg Hacking Suite Beam Rifle Beam Rifle Subdweller Laser Datajack Flamer Peak State ------------ > --- POWER ------------ Light Nuclear Core > --- PROPULSION ------- Aluminum Leg Aluminum Leg > --- UTILITY ---------- Medium Storage Unit Structural Scanner > --- WEAPON ----------- Beam Rifle Beam Rifle > --- INVENTORY -------- Aluminum Leg Hacking Suite Beam Rifle Beam Rifle Datajack Mining Laser [Rating: 12] Favorites ----------- Power Ion Engine Engine Ion Engine Power Core Light Nuclear Core Propulsion Aluminum Leg Leg Aluminum Leg Utility Structural Scanner Device Structural Scanner Storage Medium Storage Unit Weapon Beam Rifle Energy Gun Beam Rifle Special Melee Weapon Datajack Build | -11 -10 -10 ------- Run | Yrd Mat Sub Slots Evolved . | . . . Power . | . . . Propulsion . | . . . Utility . | . . . Weapon . | . . . Parts Attached 33 | 7 19 7 Power 6 | 1 3 2 Engine 5 | 1 2 2 Core 1 | . 1 . Reactor . | . . . Propulsion 6 | 2 4 . Treads . | . . . Leg 6 | 2 4 . Wheel . | . . . Hover . | . . . Flight . | . . . Utility 7 | 2 3 2 Device 4 | 1 1 2 Storage 3 | 1 2 . Processor . | . . . Hackware . | . . . Protection . | . . . Artifact . | . . . Weapon 14 | 2 9 3 Energy Gun 10 | 2 6 2 Energy Cannon . | . . . Ballistic Gun . | . . . Ballistic Cannon . | . . . Launcher . | . . . Special Weapon . | . . . Impact Weapon . | . . . Slashing Weapon . | . . . Piercing Weapon . | . . . Special Melee Weapon 4 | . 3 1 Unidentified Prototypes . | . . . Parts Lost 4 | . 4 . Power 2 | . 2 . Propulsion . | . . . Utility 1 | . 1 . Weapon 1 | . 1 . Highest Loss Streak 1 | . 1 . To Critical Strikes . | . . . Average Slot Usage (%) 96 | . 94 96 Engine 12 | . 9 14 Core 1 | . 3 . Leg 28 | . 28 28 Device 13 | . 18 11 Storage 10 | . 6 14 Energy Gun 24 | . 24 24 Special Melee Weapon 3 | . 2 3 Naked Turns . | . . . Heaviest Build 23 | 13 22 23 Greatest Support 20 | 20 20 20 Greatest Overweight (x) 1 | . 1 1 Average Overweight (x) . | . . . Largest Inventory Capacity 10 | 8 10 10 Average Capacity 8 | 7 7 10 Most Carried 10 | 3 9 10 Average Carried 7 | 1 5 9 Final Capacity 10 | 8 10 10 Final Carried 10 | 3 9 10 Class Distribution -------------------- 93% | Mutant 6% | Scavenger-Mutant Dominant Class ---------------- Mutant | -10/Materials Mutant | -10/Subcaves Resources | -11 -10 -10 ----------- Run | Yrd Mat Sub Matter Collected 556 | 270 216 70 Remotely . | . . . Salvage Created 992 | 163 625 204 Parts 48 | 10 29 9 Haulers Intercepted 2 | . 2 . Recyclers Shooed 1 | . 1 . Parts Field Recycled . | . . . Retrieved Matter . | . . . Parts Self-Destructed 14 | . . 14 Prevented . | . . . Kills | -11 -10 -10 ------- Run | Yrd Mat Sub Combat Hostiles Destroyed 13 | . 10 3 Guns 12 | . 10 2 Classes Destroyed 9 | 2 5 2 Builder 1 | . 1 . Tunneler 3 | 3 . . Hauler 2 | . 2 . Recycler 2 | 1 1 . Operator 1 | . 1 . Watcher 1 | . 1 . Grunt 10 | . 10 . Cobbler 1 | . . 1 Subdweller 3 | . . 3 Best Kill Streak 5 | 4 5 1 Combat Bots Only 2 | . 2 1 Max Kills in Single Turn 1 | 1 1 1 Gunslinging . | . . . Exploded . | . . . Melee . | . . . Uniques/NPCs Destroyed . | . . . Combat | -11 -10 -10 -------- Run | Yrd Mat Sub Hostile Shots Fired 70 | . 55 15 Missed 16 | . 13 3 Damage Taken 828 | . 555 273 Core 271 | . 199 72 Absorbed by Shields . | . . . Core Remaining (%) 100 | 100 . . Volleys Fired 83 | 9 54 20 Largest 2 | 2 2 2 Hottest 112 | 100 112 112 Shots Fired 158 | 18 107 33 Gun 158 | 18 107 33 Cannon . | . . . Launcher . | . . . Special . | . . . Kinetic . | . . . Thermal 158 | 18 107 33 Explosive . | . . . Electromagnetic . | . . . Robot Hit Streak 17 | 9 8 17 Robot Miss Streak 6 | 1 6 2 Penetration Max . | . . . Secondary Targets . | . . . Shots Hit Robots 106 | 13 68 25 Core Hits 42 | 5 28 9 Critical Kills . | . . . Critical Parts Destroyed . | . . . Critical Strikes 14 | 2 8 4 Burn 14 | 2 8 4 Melee Attacks 6 | . 5 1 Impact . | . . . Slashing . | . . . Piercing . | . . . Sneak Attacks 6 | . 5 1 Combat Hostiles . | . . . Follow-up Attacks . | . . . Damage Inflicted 1368 | 164 859 345 Guns 1368 | 164 859 345 Cannons . | . . . Explosions . | . . . Melee . | . . . Ramming . | . . . Kinetic . | . . . Thermal 1368 | 164 859 345 Explosive . | . . . Electromagnetic . | . . . Impact . | . . . Slashing . | . . . Piercing . | . . . Highest Corruption . | . . . Average Corruption . | . . . Corruption Purged . | . . . Corruption Blocked . | . . . Overload Shots . | . . . Overflow Damage . | . . . Projectiles . | . . . Explosions . | . . . Melee . | . . . Knockbacks . | . . . Impact . | . . . Kinetic . | . . . Secondary . | . . . Self-Inflicted Damage . | . . . Shots . | . . . Rammed . | . . . Targets Rammed . | . . . Kicked . | . . . Crushed . | . . . Highest Temperature 565 | 158 565 9 Average Temperature 135 | 56 155 6 Received Heat Transfer 351 | . 270 81 Effects 13 | . 13 . Shutdowns 1 | . 1 . Energy Bleed 2 | . 2 . Interference 2 | . 2 . Matter Decay 1 | . 1 . Damage (minor) 1 | . 1 . Damage (major) 6 | . 6 . Siege Activations . | . . . Robots Corrupted . | . . . Combat Hostiles . | . . . Parts Fried . | . . . Impact Corruptions . | . . . Robots Melted 1 | . . 1 Combat Hostiles 1 | . . 1 Parts Melted 15 | 1 9 5 Heat Transferred 4773 | 629 2960 1184 Parts Sabotaged . | . . . Parts Stolen . | . . . Parts Stripped . | . . . Power Chain Reactions . | . . . Alert | -11 -10 -10 ------- Run | Yrd Mat Sub Peak Influence 195 | 20 195 . Initial 13 | . 13 . Average 77 | 8 86 . Maximum Alert Level . | . . . Low Security (%) 100 | 100 100 . Level 1 . | . . . Level 2 . | . . . Level 3 . | . . . Level 4 . | . . . Level 5 . | . . . High Security . | . . . Max Security . | . . . Squads Dispatched 3 | . 3 . Investigation 1 | . 1 . Extermination . | . . . Reinforcement 2 | . 2 . Assault . | . . . Garrison . | . . . Intercept . | . . . Searches Triggered . | . . . Construction Impeded . | . . . Haulers Reinforced . | . . . Active Scanning Responses . | . . . Cargo Convoy Interrupts . | . . . Stealth | -11 -10 -10 --------- Run | Yrd Mat Sub Distress Signals 1 | . 1 . Communications Jammed . | . . . Distress Signals . | . . . Times Spotted 20 | . 16 4 Peak Tracking Total 3 | . 3 2 Tactical Retreats 1 | . 1 . Traps | -11 -10 -10 ------- Run | Yrd Mat Sub Traps Triggered 1 | . 1 . Indirectly . | . . . Trap Hack Attempts . | . . . Triggered . | . . . Disarmed . | . . . Reprogrammed . | . . . Reused . | . . . Traps Extracted . | . . . Installed . | . . . Triggered . | . . . Machines | -11 -10 -10 ---------- Run | Yrd Mat Sub Machines Disabled . | . . . Max in Single Turn . | . . . Machines Repaired . | . . . Machines Dismantled . | . . . Machines Sabotaged . | . . . Overloaded Fab Kills . | . . . Hacking | -11 -10 -10 --------- Run | Yrd Mat Sub Machines Accessed 2 | . 2 . Terminals 1 | . 1 . Fabricators . | . . . Repair Stations . | . . . Recycling Units 1 | . 1 . Scanalyzers . | . . . Garrison Access . | . . . Total Hacks 3 | . 3 . Successful 1 | . 1 . Failed 2 | . 2 . Catastrophic 1 | . 1 . Database Lockouts . | . . . Manual 3 | . 3 . Terminals 2 | . 2 . Fabricators . | . . . Repair Stations . | . . . Recycling Units 1 | . 1 . Scanalyzers . | . . . Garrison Access . | . . . Terminal Hacks . | . . . Fabricator Hacks . | . . . Repair Station Hacks . | . . . Recycling Unit Hacks . | . . . Scanalyzer . | . . . Garrison Access Hacks . | . . . Unauthorized Hacks 1 | . 1 . Terminals . | . . . Fabricators . | . . . Repair Stations . | . . . Recycling Units 1 | . 1 . Reject 1 | . 1 . Scanalyzers . | . . . Garrison Access . | . . . Data Cores Recovered . | . . . Used . | . . . Hacking Detections 1 | . 1 . Full Trace Events . | . . . Feedback Events . | . . . Feedback Blocked . | . . . Robot Schematics Acquired . | . . . Robots Built . | . . . Authchips . | . . . Time . | . . . Total Robot Build Rating . | . . . Part Schematics Acquired . | . . . Parts Built . | . . . Authchips . | . . . Time . | . . . Total Part Build Rating . | . . . Parts Repaired . | . . . Time . | . . . Parts Recycled . | . . . Recycled Matter . | . . . Retrieved Matter . | . . . Retrieved Components . | . . . Parts Scanalyzed . | . . . Part Schematics Acquired . | . . . Parts Damaged . | . . . Bothacking | -11 -10 -10 ------------ Run | Yrd Mat Sub Used RIF Installer . | . . . Robots Hacked 4 | . 3 1 Non-combat 4 | . 3 1 Combat . | . . . Robot Hacks Applied 4 | . 3 1 parse_system 2 | . 1 1 find_recycling 2 | . 2 . Relay Couplers Released . | . . . Fabnet Peak Effective % . | . . . Robots Rewired . | . . . Allies Hacked . | . . . Hacks Repelled . | . . . Allies | -11 -10 -10 -------- Run | Yrd Mat Sub Total Allies . | . . . Largest Group . | . . . Highest-Rated Group . | . . . Highest-Rated Ally . | . . . Total Orders . | . . . Ally Attacks . | . . . Total Damage . | . . . Kills . | . . . Allies Corrupted . | . . . Allies Melted . | . . . Intel | -11 -10 -10 ------- Run | Yrd Mat Sub Robot Analysis Total . | . . . Derelict Logs Recovered 1 | . . 1 Drone Launches . | . . . Drone Recoveries . | . . . Exploration | -11 -10 -10 ------------- Run | Yrd Mat Sub Turns Passed 2482 | 114 911 1457 Spaces Moved 1363 | 59 499 805 Core 8 | 8 . . Treads . | . . . Legs 1355 | 51 499 805 Wheels . | . . . Hover . | . . . Flight . | . . . Fastest Speed 50 | 50 120 120 Average Speed 155 | 110 134 172 Slowest Speed 190 | 120 190 190 Overloaded Moves . | . . . Propulsion Burnouts . | . . . Robots Hopped . | . . . Cave-ins Triggered . | . . . Exploration Rate (%) 30 | 5 49 36 Regions Visited 2 Branch Regions 1 Pre-discovered Areas 2 | . . 2 Known Exits Taken . | . . . Unknown Exits Taken 2 | 1 1 . Scrap Searched 3 | . . 3 Spaces Dug . | . . . Terrain Destroyed . | . . . Melee . | . . . Projectile . | . . . AOE . | . . . Terrain Rammed . | . . . Walls Destroyed . | . . . Machines Disabled . | . . . Actions | -11 -10 -10 --------- Run | Yrd Mat Sub Total 1555 | 86 626 843 Wait 51 | 9 39 3 Move 1361 | 58 498 805 Hop . | . . . Pick Up 10 | 3 5 2 Fast Attach 14 | 7 3 4 Attach 3 | . 3 . Detach . | . . . Swap 16 | . 13 3 Drop 11 | . 6 5 Fire 83 | 9 54 20 Melee 6 | . 5 1 Ram . | . . . Kick . | . . . Crush . | . . . Escape Stasis . | . . . Rewire . | . . . Trap . | . . . Miscellaneous . | . . . Route ------- -11/Scrapyard -10/Materials (discovered 3 exits: [*Mat x2] / [*Sub]) -10/Subcaves History --------- Turn | Location | Event 3 | -11/Scrapyard | Discovered new exit (range 15) 115 | -11/Scrapyard | Entered Materials 290 | -10/Materials | Discovered new exit (range 16) 318 | -10/Materials | Build established: Mutant 362 | -10/Materials | Discovered new exit (range 16) 861 | -10/Materials | Core integrity fell below 50% 999 | -10/Materials | Discovered new exit (range 16) 1026 | -10/Materials | Entered Subcaves 1092 | -10/Subcaves | A swath of the cavern ceiling suddenly collapsed 1321 | -10/Subcaves | Core integrity fell below 20% 2318 | -10/Subcaves | Learned location of Zion (-7) 2318 | -10/Subcaves | Met a Zionite searching for "candidates" 2483 | -10/Subcaves | Destroyed by BO-GMY(R) with Subdweller Beam Cannon Last Messages --------------- Sub. Optics shoots sparks and powers down. Dropped Broken Sub. Optics. Dropped Mining Laser. Acquired Flamer. Sub. Power Source shoots sparks and powers down. Dropped Broken Sub. Power Source. Acquired Ion Engine. Acquired Structural Scanner. Acquired 20 matter. M3-42K(u) deconstructs Twisted Machinery. MW-2PO(z): "She is not going to be happy we haven't found any suitable candidates yet." MW-2PO(z): "Hey you! It's really dangerous down here, I feel that you could die at any moment. For your health and safety might I suggest a trip to Zion?" World map updated: -7/Zion. Acquired derelict log, extracted data. World map updated: -10/Materials. BO-GMY(R) suffers critical hit (Burn). Map ----- +----------------------------------------------------+ | ?????????????????????????????????????????????????? | | ?????????????????????????????????????????????????? | | ?????????????????????????????????????????????????? | | ?????????????????????????????????????????????????? | | ?????????????????????????????????????????????????? | | ?????????????????????????????????????????????????? | | ?????????????????????????????????????????????????? | | ?????????????????????????????????????????????????? | | ?????????????????????????????????????????????????? | | ???????????????????????###???????????????????????? | | ??????????????????????? ##???????????????????????? | | ?????????????????## ? #???????????????????????? | | ???????????????#### ##??????????????????????? | | ???????????????### ##??????????????????????? | | ??????????????? ??????????????????????? | | ?????????????????? #?????????????????????? | | ?????????????????? ##?????????????????????? | | ??????????????????? ##?????????????????????? | | ???????????????????? ##?????????????????????? | | ????????????????????? ###????????????????????? | | ????????????????????? ####???????????????????? | | ?????????????????????? ###???????????????????? | | ????????????????????? ##???????????????????? | | ?????????????????????###R ##???????????????????? | | ??????????????????# ### ##???????????????????? | | ?????????????????####### @###????????????????????? | | ?????????????????## ### ###????????????????????? | | ?????????????????## ### ##????????????????????? | | ????????????????### "## " ##????????????????????# | | ????????????####### ## ##???????????????????## | | ????????????###### # #########?????????????## | | ????????????## ## # ################?????## | | ??????## ??### ### ##### ##########?????## | | ??????## ## ## ## #### ######?## | | ??????## ## ######### | | ??????###### ### ##### | | ??????###### ########### ### | | ????????### ############### ### # ## | | ????????## ##???????? ####### ### | | ???????? ??????????????######## ### | | ?????? ??????????????????#### ## ##### ## | | ???## ?????????????????????################# | | ???## ## ?????????????????????#########?####### | | ???###### #????????????????????????????????????## | | ???#########????????????????????????????????????## | | ???????#####?????????????????????????????????????? | | ?????????????????????????????????????????????????? | | ?????????????????????????????????????????????????? | | ?????????????????????????????????????????????????? | | ?????????????????????????????????????????????????? | +----------------------------------------------------+ Best States ------------- Heat Dissipation 25 Energy Generation 15 Energy Capacity 250 Matter Stores 300 Matter Capacity 300 Sight Range 21 Terrain Scan Range 16 Terrain Scan Density 10 Evasion (%) 55 Item Schematics ----------------- None Robot Schematics ------------------ None Fabricated ------------ Nothing Alien Tech Used ----------------- None Achievements -------------- None Challenges ------------ None Game ------ Seed NeutronThunderGuard Manual? 0 Play Time 00:17:29 Cumulative 30.7 hours Start 2024.04.10 @ 11:33:26 End 2024.04.10 @ 11:47:53 Sessions 1 Manual Loads 0 Difficulty Rogue Special Mode None Game No. 49 Rogue 49 Adventurer 0 Explorer 0 Win Type - Total 0 Types 0/0/0/0/0/0/0/0/0 Lore% 21 Gallery% 35 Achievement% 29 Wizard Run 0 Options --------- Layout 1 ASCII 0 Keyboard 0 Movement Mouse Keybinds 0 Fullscreen 1 Font 32/SmallcapsGlow Map View 50x35 Zoom Use 0% Tactical HUD 0 Map Filters NONE Filters NONE Steam 1 RUN: db5b4c54-a307-4a16-8a7f-d3825a11ffa1